Cogmind - Beta 13 @@@ ROGUE MODE // 2024.05.23 @ 16:41:17 Player: mewcatx Result: Destroyed by Y-45 Defender with Heavy Assault Rifle Performance ------------- Evolutions (0) 0 Regions Visited (2) 400 Robots Destroyed (19) 95 Value Destroyed (372) 372 Prototype IDs (0) 0 Alien Tech Used (0) 0 Bonus (0) 0 TOTAL SCORE: 867 Bonus ------- None Cogmind --------- Core Integrity 0/250 Matter 251/300 Energy 60/100 System Corruption 0% Temperature Cool (25) Movement Treading (480) Ox4 Location -10/Mines Parts ------- > --- POWER (1) -------- (None) > --- PROPULSION (2) --- Light Treads > --- UTILITY (2) ------ Huge Storage Unit > --- WEAPON (2) ------- Beam Cannon Assault Rifle > --- INVENTORY (25) --- Light Ion Engine Light Nuclear Core Heat Sink Large Matter Pod (0) Weapon Shielding Small Laser Assault Rifle Grenade Launcher Peak State ------------ > --- POWER ------------ Light Ion Engine > --- PROPULSION ------- Light Treads Light Treads > --- UTILITY ---------- Huge Storage Unit Weapon Shielding > --- WEAPON ----------- Particle Gun Assault Rifle > --- INVENTORY -------- Light Ion Engine Light Ion Engine Light Treads Light Treads Heat Sink Large Matter Pod Weapon Shielding Small Laser Assault Rifle Assault Rifle [Rating: 9] Favorites ----------- Power Light Ion Engine Engine Light Ion Engine Propulsion Light Treads Treads Light Treads Utility Weapon Shielding Storage Huge Storage Unit Protection Weapon Shielding Weapon Assault Rifle Energy Gun Particle Gun Energy Cannon Beam Cannon Ballistic Gun Assault Rifle Build | -11 -10 -10 ------- Run | Yrd Mat Min Slots Evolved . | . . . Power . | . . . Propulsion . | . . . Utility . | . . . Weapon . | . . . Parts Attached 26 | 7 14 5 Power 5 | 2 2 1 Engine 5 | 2 2 1 Core . | . . . Reactor . | . . . Propulsion 8 | 2 4 2 Treads 8 | 2 4 2 Leg . | . . . Wheel . | . . . Hover . | . . . Flight . | . . . Utility 6 | 1 5 . Device . | . . . Storage 4 | 1 3 . Processor . | . . . Hackware . | . . . Protection 2 | . 2 . Artifact . | . . . Weapon 7 | 2 3 2 Energy Gun 3 | 2 1 . Energy Cannon 1 | . . 1 Ballistic Gun 3 | . 2 1 Ballistic Cannon . | . . . Launcher . | . . . Special Weapon . | . . . Impact Weapon . | . . . Slashing Weapon . | . . . Piercing Weapon . | . . . Special Melee Weapon . | . . . Unidentified Prototypes . | . . . Parts Lost 8 | . . 8 Power 2 | . . 2 Propulsion 3 | . . 3 Utility 1 | . . 1 Weapon 2 | . . 2 Highest Loss Streak 6 | . . 6 To Critical Strikes . | . . . Average Slot Usage (%) 97 | . 98 97 Engine 13 | . 14 12 Treads 27 | . 28 27 Storage 15 | . 16 14 Protection 11 | . 9 13 Energy Gun 14 | . 14 13 Ballistic Gun 13 | . 13 14 Naked Turns . | . . . Heaviest Build 89 | 13 89 89 Greatest Support 40 | 40 40 40 Greatest Overweight (x) 2 | . 2 2 Average Overweight (x) 1 | . . 2 Largest Inventory Capacity 25 | 8 25 25 Average Capacity 20 | 7 18 25 Most Carried 11 | 4 11 11 Average Carried 9 | 2 9 10 Final Capacity 25 | 8 25 25 Final Carried 11 | 4 11 8 Class Distribution -------------------- 100% | Mutant Dominant Class ---------------- Mutant | -10/Materials Mutant | -10/Mines Resources | -11 -10 -10 ----------- Run | Yrd Mat Min Matter Collected 507 | 197 174 136 Remotely . | . . . Salvage Created 473 | . 217 256 Parts 39 | . 16 23 Haulers Intercepted . | . . . Recyclers Shooed . | . . . Parts Field Recycled . | . . . Retrieved Matter . | . . . Parts Self-Destructed . | . . . Prevented . | . . . Kills | -11 -10 -10 ------- Run | Yrd Mat Min Combat Hostiles Destroyed 18 | . 9 9 Guns 16 | . 9 7 Cannons 2 | . . 2 Classes Destroyed 4 | . 2 2 Worker 1 | . . 1 Swarmer 12 | . 6 6 Grunt 5 | . 3 2 Sentry 1 | . . 1 Best Kill Streak 5 | . 3 5 Combat Bots Only 4 | . 3 4 Max Kills in Single Turn 2 | . 1 2 Gunslinging . | . . . Exploded . | . . . Melee . | . . . Uniques/NPCs Destroyed . | . . . Combat | -11 -10 -10 -------- Run | Yrd Mat Min Hostile Shots Fired 155 | . 51 104 Missed 37 | . 14 23 Damage Taken 1296 | . 410 886 Core 251 | . 81 170 Absorbed by Shields . | . . . Redirected to Shielding 50 | . 14 36 Regen/Repaired (Parts) 77 | . 77 . Core Remaining (%) 100 | 100 . . Volleys Fired 47 | . 23 24 Largest 2 | . 2 2 Hottest 85 | . 70 85 Shots Fired 94 | . 46 48 Gun 89 | . 46 43 Cannon 5 | . . 5 Launcher . | . . . Special . | . . . Kinetic 47 | . 23 24 Thermal 47 | . 23 24 Explosive . | . . . Electromagnetic . | . . . Robot Hit Streak 11 | . 7 11 Robot Miss Streak 4 | . 3 4 Penetration Max . | . . . Secondary Targets 2 | . 2 . Max Gunslinging Chain 1 | . 1 . Shots Hit Robots 55 | . 25 30 Core Hits 25 | . 13 12 Critical Kills . | . . . Critical Parts Destroyed . | . . . Critical Strikes 3 | . 2 1 Burn 3 | . 2 1 Melee Attacks . | . . . Impact . | . . . Slashing . | . . . Piercing . | . . . Sneak Attacks . | . . . Combat Hostiles . | . . . Follow-up Attacks . | . . . Damage Inflicted 774 | . 325 449 Guns 719 | . 325 394 Cannons 55 | . . 55 Explosions . | . . . Melee . | . . . Ramming . | . . . Kinetic 337 | . 131 206 Thermal 437 | . 194 243 Explosive . | . . . Electromagnetic . | . . . Impact . | . . . Slashing . | . . . Piercing . | . . . Highest Corruption . | . . . Average Corruption . | . . . Corruption Purged . | . . . Corruption Blocked . | . . . Overload Shots . | . . . Overflow Damage . | . . . Projectiles . | . . . Explosions . | . . . Melee . | . . . Knockbacks . | . . . Impact . | . . . Kinetic . | . . . Secondary . | . . . Self-Inflicted Damage . | . . . Shots . | . . . Rammed 1 | . 1 . Targets Rammed 1 | . 1 . Kicked . | . . . Crushed . | . . . Highest Temperature 282 | . 141 282 Average Temperature 74 | . 47 100 Received Heat Transfer 399 | . 132 267 Siege Activations . | . . . Robots Corrupted . | . . . Combat Hostiles . | . . . Parts Fried . | . . . Impact Corruptions . | . . . Robots Melted . | . . . Combat Hostiles . | . . . Parts Melted . | . . . Heat Transferred 1332 | . 703 629 Parts Sabotaged . | . . . Parts Stolen . | . . . Parts Stripped . | . . . Power Chain Reactions . | . . . Alert | -11 -10 -10 ------- Run | Yrd Mat Min Peak Influence 147 | . 147 70 Initial 5 | . . 5 Average 33 | . 48 15 Maximum Alert Level . | . . . Low Security (%) 100 | 100 100 100 Level 1 . | . . . Level 2 . | . . . Level 3 . | . . . Level 4 . | . . . Level 5 . | . . . High Security . | . . . Max Security . | . . . Squads Dispatched . | . . . Investigation . | . . . Extermination . | . . . Reinforcement . | . . . Assault . | . . . Garrison . | . . . Intercept . | . . . Searches Triggered . | . . . Construction Impeded . | . . . Haulers Reinforced . | . . . Active Scanning Responses . | . . . Cargo Convoy Interrupts . | . . . Stealth | -11 -10 -10 --------- Run | Yrd Mat Min Distress Signals 2 | . 2 . Communications Jammed . | . . . Distress Signals . | . . . Times Spotted 27 | . 17 10 Peak Tracking Total 5 | . 4 5 Tactical Retreats 1 | . 1 . Traps | -11 -10 -10 ------- Run | Yrd Mat Min Traps Triggered 2 | . 2 . Indirectly . | . . . Trap Hack Attempts . | . . . Triggered . | . . . Disarmed . | . . . Reprogrammed . | . . . Reused . | . . . Traps Extracted . | . . . Installed . | . . . Triggered . | . . . Machines | -11 -10 -10 ---------- Run | Yrd Mat Min Machines Disabled 1 | . 1 . Max in Single Turn 1 | . 1 . Machines Repaired . | . . . Machines Dismantled . | . . . Machines Sabotaged . | . . . Overloaded Fab Kills . | . . . Hacking | -11 -10 -10 --------- Run | Yrd Mat Min Machines Accessed 7 | . 7 . Terminals 5 | . 5 . Fabricators . | . . . Repair Stations 1 | . 1 . Recycling Units 1 | . 1 . Scanalyzers . | . . . Garrison Access . | . . . Total Hacks 15 | . 15 . Successful 7 | . 7 . Failed 8 | . 8 . Catastrophic 2 | . 2 . Database Lockouts . | . . . Manual 13 | . 13 . Terminals 12 | . 12 . Fabricators . | . . . Repair Stations 2 | . 2 . Recycling Units 1 | . 1 . Scanalyzers . | . . . Garrison Access . | . . . Terminal Hacks 2 | . 2 . Robot Analysis 2 | . 2 . Fabricator Hacks . | . . . Repair Station Hacks 2 | . 2 . Scan Component 1 | . 1 . Repair 1 | . 1 . Recycling Unit Hacks . | . . . Scanalyzer . | . . . Garrison Access Hacks . | . . . Unauthorized Hacks 3 | . 3 . Terminals 2 | . 2 . Botnet 2 | . 2 . Fabricators . | . . . Repair Stations . | . . . Recycling Units 1 | . 1 . Mask 1 | . 1 . Scanalyzers . | . . . Garrison Access . | . . . Data Cores Recovered . | . . . Used . | . . . Hacking Detections 6 | . 6 . Full Trace Events 1 | . 1 . Feedback Events . | . . . Feedback Blocked . | . . . Robot Schematics Acquired . | . . . Robots Built . | . . . Authchips . | . . . Time . | . . . Total Robot Build Rating . | . . . Part Schematics Acquired . | . . . Parts Built . | . . . Authchips . | . . . Time . | . . . Total Part Build Rating . | . . . Parts Repaired 1 | . 1 . Time 13 | . 13 . Parts Recycled . | . . . Recycled Matter . | . . . Retrieved Matter . | . . . Retrieved Components . | . . . Parts Scanalyzed . | . . . Part Schematics Acquired . | . . . Parts Damaged . | . . . Bothacking | -11 -10 -10 ------------ Run | Yrd Mat Min Used RIF Installer . | . . . Robots Hacked . | . . . Non-combat . | . . . Combat . | . . . Robot Hacks Applied . | . . . Relay Couplers Released . | . . . Fabnet Peak Effective % . | . . . Robots Rewired . | . . . Allies Hacked . | . . . Hacks Repelled . | . . . Allies | -11 -10 -10 -------- Run | Yrd Mat Min Total Allies . | . . . Largest Group . | . . . Highest-Rated Group . | . . . Highest-Rated Ally . | . . . Total Orders . | . . . Ally Attacks . | . . . Total Damage . | . . . Kills . | . . . Allies Corrupted . | . . . Allies Melted . | . . . Intel | -11 -10 -10 ------- Run | Yrd Mat Min Robot Analysis Total 2 | . 2 . Derelict Logs Recovered 1 | . . 1 Drone Launches . | . . . Drone Recoveries . | . . . Exploration | -11 -10 -10 ------------- Run | Yrd Mat Min Turns Passed 2400 | 116 1383 901 Spaces Moved 833 | 62 530 241 Core 5 | 5 . . Treads 828 | 57 530 241 Legs . | . . . Wheels . | . . . Hover . | . . . Flight . | . . . Fastest Speed 50 | 50 160 320 Average Speed 255 | 151 238 320 Slowest Speed 320 | 160 320 320 Overloaded Moves . | . . . Propulsion Burnouts . | . . . Robots Hopped . | . . . Cave-ins Triggered . | . . . Exploration Rate (%) 44 | 5 85 43 Regions Visited 2 Branch Regions 1 Pre-discovered Areas . | . . . Known Exits Taken . | . . . Unknown Exits Taken 2 | 1 1 . Scrap Searched 1 | . . 1 Spaces Dug . | . . . Terrain Destroyed . | . . . Melee . | . . . Projectile . | . . . AOE . | . . . Terrain Rammed . | . . . Walls Destroyed . | . . . Machines Disabled . | . . . Actions | -11 -10 -10 --------- Run | Yrd Mat Min Total 1010 | 81 605 324 Wait 73 | 9 12 52 Move 831 | 61 529 241 Hop . | . . . Pick Up 21 | 4 15 2 Fast Attach 10 | 6 4 . Attach 8 | . 3 5 Detach 1 | . 1 . Swap 8 | 1 7 . Drop 10 | . 10 . Fire 47 | . 23 24 Melee . | . . . Ram . | . . . Kick . | . . . Crush 1 | . 1 . Escape Stasis . | . . . Rewire . | . . . Trap . | . . . Miscellaneous . | . . . Route ------- -11/Scrapyard -10/Materials (discovered 4 exits: [*Mat x3] / [*Min]) -10/Mines History --------- Turn | Location | Event 9 | -11/Scrapyard | Discovered new exit (range 14) 117 | -11/Scrapyard | Entered Materials 301 | -10/Materials | Discovered new exit (range 8) 315 | -10/Materials | Build established: Mutant 352 | -10/Materials | Discovered new exit (range 13) 445 | -10/Materials | Discovered new exit (range 16) 689 | -10/Materials | Discovered new exit (range 13) 848 | -10/Materials | Repaired Lgt. Treads 1500 | -10/Materials | Entered Mines 1653 | -10/Mines | Learned Materials security intel 2363 | -10/Mines | Core integrity fell below 50% 2387 | -10/Mines | Core integrity fell below 20% 2401 | -10/Mines | Destroyed by Y-45 Defender with Heavy Assault Rifle Last Messages --------------- 02285_ Acquired 14 matter. 02291_ Acquired 16 matter. 02308_ T-07 Excavator is excavating. 02362_ Critical hit (Burn: +37). 02377_ Lgt. Ion Engine destroyed. 02377_ Y-45 Defender suffers critical hit (Burn). 02383_ Particle Gun destroyed. 02385_ Y-45 Defender destroyed. 02386_ Weapon Shielding destroyed. 02386_ Lgt. Treads destroyed. 02388_ S-10 Pest destroyed. 02388_ K-01 Serf collects debris. 02392_ Assault Rifle destroyed. 02392_ Lgt. Treads destroyed. 02393_ K-01 Serf collects debris. 02394_ S-10 Pest destroyed. 02397_ K-01 Serf collects debris. 02400_ S-10 Pest destroyed. 02400_ K-01 Serf destroyed. Map ----- +----------------------------------------------------+ | ???????????????????????# ####### " | | ???????????????????????# #?????# " | | ???????????????????????# #?????# | | ???????????????????????# ###???# | | ?????????????????????### ##??# | | ?????????????????##### ##?### | | ?????????????????# ##??? | | ?????????????????# #??? | | ?????????????????## #??? | | ???????????#??????## #??? | | ??????????? #??????### ##??? | | ??????????? ????????# ###???? | | ??????????? !#???????# ## ###???? | | ???????????? ##?????# ##* ????? | | ???????????? #?????# ##%###???? | | ???????????? ?????# [#?????? | | ????????????# ?????#####=#?????? | | ????????????# #????###### ##????? | | ????????????# #???## ##*= ##???? | | ????????????# #??## = ### | | ????????????# #??# * | | ????????????# #### ## | | ????????##### ##?? | | ????????#=% #???? | | ????????#*############## | | ????????#@#????????????## ##### | | ???????##%#?????????????####?????? | | ???###?#=[##?????????????????????? | | ??##[!##Y[%#?????????????????????? | | ??#"!! #**%#####?????????????????? | | ??# ;![= ??????????? | | ??# + ""???????????? | | ??#"!] # #### ""???????????? | | ??##!!## #?????? ""???????????? | | ???###?## ##????????????????????? | | ?????????###?????????????????????? | | ?????????????????????????????????? | | | | | | | | | | | | | | | | | | | | | | | | | | | +----------------------------------------------------+ Best States ------------- Heat Dissipation 25 Energy Generation 10 Energy Capacity 250 Matter Stores 271 Matter Capacity 450 Sight Range 16 Terrain Scan Density 10 Weapon Shielding 33 Evasion (%) 40 Recoil Reduction 2 Item Schematics ----------------- None Robot Schematics ------------------ None Fabricated ------------ Nothing Alien Tech Used ----------------- None Achievements -------------- None Challenges ------------ None Game ------ Seed ImprovedPowerRailgun Manual? 0 Play Time 00:15:45 Cumulative 37.2 hours Start 2024.05.23 @ 16:26:22 End 2024.05.23 @ 16:41:17 Sessions 1 Manual Loads 0 Difficulty Rogue Special Mode None Game No. 26 Rogue 25 Adventurer 1 Explorer 0 Win Type - Total 1 Types 1/0/0/0/0/0/0/0/0 Lore% 31 Gallery% 41 Achievement% 32 Wizard Run 0 Options --------- Layout 1 ASCII 0 Keyboard 0 Movement Mouse Keybinds 0 Fullscreen 1 Font 36/Proggy Map View 50x40 Zoom Use 0% Tactical HUD 1 Map Filters NONE Filters NONE Steam 0 RUN: 4f91c310-9700-4546-9b9a-40669def758a